Cogmind - Beta 16.1 @@@ ROGUE MODE // 2026.03.04 @ 17:12:08 Player: Endlessblaze Result: Destroyed by G-34 Mercenary with Small Laser Performance ------------- Evolutions (1) 500 Regions Visited (3) 600 Robots Destroyed (10) 50 Value Destroyed (147) 147 Prototype IDs (1) 20 Alien Tech Used (0) 0 Bonus (0) 0 TOTAL SCORE: 1317 Bonus ------- None Cogmind --------- Core Integrity 0/400 Matter 300/300 Energy 48/250 System Corruption 1% Temperature Cool (6) Movement Core (50) Location -9/Materials Parts ------- > --- POWER (1) -------- (None) > --- PROPULSION (2) --- (None) > --- UTILITY (4) ------ Medium Battery Weight Redist. System > --- WEAPON (2) ------- (None) > --- INVENTORY (5) ---- Scrap Suit Improved Terrain Scanner Flail Peak State ------------ > --- POWER ------------ Light Ion Engine > --- PROPULSION ------- VTOL Module VTOL Module > --- UTILITY ---------- Weight Redist. System Sensor Array Seismic Detector ECM Suite > --- WEAPON ----------- EMP Blaster EMP Blaster > --- INVENTORY -------- Scrap Suit Improved Terrain Scanner [Rating: 15] Favorites ----------- Power Light Ion Engine Engine Light Ion Engine Propulsion VTOL Module Leg Aluminum Leg Flight Unit VTOL Module Utility Seismic Detector Device Seismic Detector Storage Medium Battery Weapon Assault Rifle Energy Gun Improved EM Shotgun Ballistic Gun Assault Rifle Launcher EMP Blaster Build | -11 -10 -10 -9 ------- Run | Yrd Mat Min Mat Slots Evolved 2 | . . . 2 Power . | . . . . Propulsion . | . . . . Utility 2 | . . . 2 Weapon . | . . . . Parts Attached 17 | 7 3 2 5 Power 1 | 1 . . . Engine 1 | 1 . . . Core . | . . . . Reactor . | . . . . Propulsion 5 | 2 2 . 1 Treads . | . . . . Leg 2 | 2 . . . Wheel . | . . . . Hover . | . . . . Flight 3 | . 2 . 1 Utility 6 | 2 1 . 3 Device 5 | 2 1 . 2 Storage 1 | . . . 1 Processor . | . . . . Hackware . | . . . . Protection . | . . . . Artifact . | . . . . Weapon 5 | 2 . 2 1 Energy Gun 1 | . . . 1 Energy Cannon . | . . . . Ballistic Gun 2 | 2 . . . Ballistic Cannon . | . . . . Launcher 2 | . . 2 . Special Weapon . | . . . . Impact Weapon . | . . . . Slashing Weapon . | . . . . Piercing Weapon . | . . . . Special Melee Weapon . | . . . . Unidentified Prototypes 1 | . . . 1 Parts Lost 10 | . . . 10 Power 1 | . . . 1 Propulsion 3 | . . . 3 Utility 3 | . . . 3 Weapon 3 | . . . 3 Highest Loss Streak 6 | . . . 6 To Critical Strikes . | . . . . Average Backups 2 | . 3 4 2 Power . | . . . . Propulsion . | . . . . Utility 1 | . 1 3 2 Weapon . | . 1 . . Tool/Special . | . . . . Unused Backups 2 | . . . 2 Power . | . . . . Propulsion . | . . . . Utility 1 | . . . 1 Weapon 1 | . . . 1 Tool/Special . | . . . . Average Slot Usage (%) 79 | . 100 100 58 Engine 8 | . 14 14 2 Leg 1 | . 7 . . Flight 18 | . 21 28 12 Device 28 | . 28 28 28 Storage 1 | . . . 3 Energy Gun 1 | . . . 3 Ballistic Gun 9 | . 28 8 . Launcher 8 | . . 20 7 Peak Build Rating 15 | 9 11 13 15 Average Rating 8 | 4 9 12 9 On Entrance 8 | . 9 10 13 Avg Prop Armor Cover (%) 6 | . . . 6 Naked Turns . | . . . . Heaviest Build 14 | 9 9 12 14 Greatest Support 20 | 20 20 14 14 Greatest Overweight (x) 4 | . 2 . 4 Average Overweight (x) . | . . . . Largest Inventory Capacity 5 | 5 5 5 5 Average Capacity 5 | 5 5 5 5 Most Carried 5 | . 5 5 4 Average Carried 2 | . 3 4 3 Final Capacity 5 | 5 5 5 5 Final Carried 5 | . 5 5 4 Class Distribution -------------------- 68% | Mutant 31% | Sprinter Dominant Class ---------------- Sprinter | -10/Materials Sprinter | -10/Mines Mutant | -9/Materials Resources | -11 -10 -10 -9 ----------- Run | Yrd Mat Min Mat Matter Collected 394 | 278 . 84 32 Remotely . | . . . . Salvage Created 260 | 147 . 43 70 Parts 25 | 12 . 3 10 Haulers Intercepted . | . . . . Recyclers Shooed . | . . . . Parts Field Recycled . | . . . . Retrieved Matter . | . . . . Parts Self-Destructed . | . . . . Prevented . | . . . . Parts Restored . | . . . . Kills | -11 -10 -10 -9 ------- Run | Yrd Mat Min Mat Combat Hostiles Destroyed 5 | . . 3 2 Guns 4 | . . 3 1 AOE 1 | . . . 1 Classes Destroyed 5 | 2 . 1 2 Builder 1 | . . . 1 Tunneler 3 | 3 . . . Recycler 1 | 1 . . . Swarmer 4 | . . 3 1 Sentry 1 | . . . 1 Best Kill Streak 3 | 3 . 3 2 Combat Bots Only 3 | . . 3 1 Max Kills in Single Turn 2 | 1 . 2 1 Gunslinging 1 | . . 1 . Exploded 1 | . . . 1 Melee . | . . . . Uniques/NPCs Destroyed . | . . . . Combat | -11 -10 -10 -9 -------- Run | Yrd Mat Min Mat Hostile Shots Fired 61 | . . 2 59 Missed 14 | . . . 14 Hits 47 | . . 2 45 Projectile 47 | . . 2 45 Critical Strikes 3 | . . 1 2 Damage Taken 831 | . . 15 816 Core 405 | . . . 405 Absorbed by Shields . | . . . . Core Remaining (%) 100 | 100 . 100 . Volleys Fired 16 | 5 . 2 9 Largest 2 | 2 . 2 1 Hottest 45 | 40 . 40 45 Shots Fired 23 | 10 . 4 9 Gun 20 | 10 . 4 6 Cannon . | . . . . Launcher 3 | . . . 3 Special . | . . . . Kinetic 14 | 10 . 4 . Thermal . | . . . . Explosive . | . . . . Electromagnetic 9 | . . . 9 Robot Hit Streak 10 | 6 . 9 10 Robot Miss Streak 1 | . . . 1 Penetration Max . | . . . . Secondary Targets 1 | . . 1 . Max Gunslinging Chain 1 | . . 1 . Shots Hit Robots 16 | 6 . 3 7 Core Hits 13 | 4 . 3 6 Critical Kills . | . . . . Critical Parts Destroyed . | . . . . Critical Strikes . | . . . . Melee Attacks . | . . . . Impact . | . . . . Slashing . | . . . . Piercing . | . . . . Sneak Attacks . | . . . . Combat Hostiles . | . . . . Follow-up Attacks . | . . . . Damage Inflicted 498 | 78 . 34 386 Guns 215 | 78 . 34 103 Cannons . | . . . . Explosions 283 | . . . 283 Melee . | . . . . Ramming . | . . . . Kinetic 112 | 78 . 34 . Thermal 125 | . . . 125 Explosive 143 | . . . 143 Electromagnetic 118 | . . . 118 Impact . | . . . . Slashing . | . . . . Piercing . | . . . . Highest Corruption 1 | . . . 1 Average Corruption 1 | . . . 1 Corruption Purged . | . . . . Corruption Blocked . | . . . . Overload Shots . | . . . . Overflow Damage 23 | . . . 23 Projectiles . | . . . . Explosions 23 | . . . 23 Melee . | . . . . Knockbacks . | . . . . Impact . | . . . . Kinetic . | . . . . Secondary . | . . . . Self-Inflicted Damage 252 | . . . 252 Shots 6 | . . . 6 Rammed . | . . . . Targets Rammed . | . . . . Kicked . | . . . . Crushed . | . . . . Highest Temperature 23 | . . . 23 Average Temperature 8 | . . . 8 Received Heat Transfer 213 | . . . 213 Siege Activations . | . . . . Martial Activations . | . . . . Shielding Activations . | . . . . Robots Disrupted . | . . . . Combat Hostiles . | . . . . Robots Corrupted . | . . . . Combat Hostiles . | . . . . Parts Fried 1 | . . . 1 Impact Corruptions . | . . . . Robots Melted . | . . . . Combat Hostiles . | . . . . Parts Melted . | . . . . Heat Transferred 150 | . . . 150 Parts Sabotaged . | . . . . Parts Stolen . | . . . . Parts Stripped . | . . . . Power Chain Reactions 1 | . . . 1 Alert | -11 -10 -10 -9 ------- Run | Yrd Mat Min Mat Maximum Alert Level . | . . . . Low Security (%) 100 | 100 100 100 100 Level 1 . | . . . . Level 2 . | . . . . Level 3 . | . . . . Level 4 . | . . . . Level 5 . | . . . . High Security . | . . . . Max Security . | . . . . Peak Influence 99 | 5 15 73 99 Initial 16 | . 3 3 16 Average 31 | 1 3 60 59 Influence Increases 335 | 20 24 70 221 Destroy 0b10 Robot/C 100 | . . 60 40 Destroy 0b10 Robot/NC 25 | 20 . . 5 Destroy Leader 20 | . . 10 10 Successful Hack 9 | . 9 . . Disable Machine 45 | . . . 45 Destroy Structure 46 | . . . 46 Partial Spotted 15 | . 15 . . Lose Combat Pursuer 75 | . . . 75 Influence Decreases 258 | 15 21 35 187 Entered New Map 34 | . 2 5 27 Time Decay 124 | 15 19 30 60 Lost Part 100 | . . . 100 Squads Dispatched . | . . . . Investigation . | . . . . Extermination . | . . . . Reinforcement . | . . . . Assault . | . . . . Garrison . | . . . . Intercept . | . . . . Searches Triggered . | . . . . Construction Impeded . | . . . . Haulers Reinforced . | . . . . Active Scanning Responses . | . . . . Cargo Convoy Interrupts . | . . . . Stealth | -11 -10 -10 -9 --------- Run | Yrd Mat Min Mat Distress Signals . | . . . . Communications Jammed . | . . . . Distress Signals . | . . . . Times Spotted 15 | . 1 1 13 Peak Tracking Total 6 | . 2 1 6 Tactical Retreats 2 | . . . 2 Traps | -11 -10 -10 -9 ------- Run | Yrd Mat Min Mat Traps Triggered . | . . . . Indirectly . | . . . . Trap Hack Attempts . | . . . . Triggered . | . . . . Disarmed . | . . . . Reprogrammed . | . . . . Reused . | . . . . Traps Extracted . | . . . . Installed . | . . . . Triggered . | . . . . Machines | -11 -10 -10 -9 ---------- Run | Yrd Mat Min Mat Machines Disabled 3 | . . . 3 Max in Single Turn 2 | . . . 2 Machines Repaired . | . . . . Machines Dismantled . | . . . . Machines Sabotaged . | . . . . Overloaded Fab Kills . | . . . . Hacking | -11 -10 -10 -9 --------- Run | Yrd Mat Min Mat Machines Accessed 4 | . 4 . . Terminals 3 | . 3 . . Fabricators . | . . . . Repair Stations . | . . . . Recycling Units 1 | . 1 . . Scanalyzers . | . . . . Garrison Access . | . . . . Total Hacks 18 | . 18 . . Successful 8 | . 8 . . Failed 10 | . 10 . . Catastrophic . | . . . . Database Lockouts . | . . . . Manual 12 | . 12 . . Terminals 14 | . 14 . . Fabricators . | . . . . Repair Stations . | . . . . Recycling Units 4 | . 4 . . Scanalyzers . | . . . . Garrison Access . | . . . . Terminal Hacks 3 | . 3 . . Record 1 | . 1 . . Emergency Access Points 1 | . 1 . . Locate Traps 1 | . 1 . . Fabricator Hacks . | . . . . Repair Station Hacks . | . . . . Recycling Unit Hacks 1 | . 1 . . Report Inventory 1 | . 1 . . Scanalyzer . | . . . . Garrison Access Hacks . | . . . . Unauthorized Hacks 4 | . 4 . . Terminals 3 | . 3 . . Track 1 | . 1 . . Botnet 2 | . 2 . . Fabricators . | . . . . Repair Stations . | . . . . Recycling Units 1 | . 1 . . Monitor 1 | . 1 . . Scanalyzers . | . . . . Garrison Access . | . . . . Data Cores Recovered . | . . . . Used . | . . . . Hacking Detections 4 | . 4 . . Full Trace Events . | . . . . Feedback Events . | . . . . Feedback Blocked . | . . . . Robot Schematics Acquired . | . . . . Robots Built . | . . . . Authchips . | . . . . Time . | . . . . Total Robot Build Rating . | . . . . Part Schematics Acquired . | . . . . Parts Built . | . . . . Authchips . | . . . . Time . | . . . . Total Part Build Rating . | . . . . Part Studies Acquired . | . . . . Parts Repaired . | . . . . Time . | . . . . Parts Recycled . | . . . . Recycled Matter . | . . . . Retrieved Matter . | . . . . Retrieved Components . | . . . . Parts Scanalyzed . | . . . . Part Schematics Acquired . | . . . . Parts Damaged . | . . . . Bothacking | -11 -10 -10 -9 ------------ Run | Yrd Mat Min Mat Used RIF Installer . | . . . . Robots Hacked . | . . . . Non-combat . | . . . . Combat . | . . . . Robot Hacks Applied . | . . . . Relay Couplers Released . | . . . . Fabnet Peak Effective % . | . . . . Robots Rewired . | . . . . Allies Hacked . | . . . . Hacks Repelled . | . . . . Allies | -11 -10 -10 -9 -------- Run | Yrd Mat Min Mat Total Allies . | . . . . Largest Group . | . . . . Highest-Rated Group . | . . . . Highest-Rated Ally . | . . . . Total Orders . | . . . . Ally Attacks . | . . . . Total Damage . | . . . . Kills . | . . . . Allies Corrupted . | . . . . Allies Melted . | . . . . Intel | -11 -10 -10 -9 ------- Run | Yrd Mat Min Mat Active Infowar (turns) 203 | 8 79 61 55 Sensors 42 | . . . 42 Terrain 28 | 8 20 . . Seismic 163 | 8 79 61 15 ECM 11 | . . . 11 Robot Analysis Total . | . . . . Derelict Logs Recovered 1 | . . 1 . Drone Launches . | . . . . Drone Recoveries . | . . . . Exploration | -11 -10 -10 -9 ------------- Run | Yrd Mat Min Mat Turns Passed 398 | 119 79 61 139 Spaces Moved 573 | 83 174 155 161 Core 54 | 7 1 . 46 Treads . | . . . . Legs 87 | 76 11 . . Wheels . | . . . . Hover . | . . . . Flight 432 | . 162 155 115 Fastest Speed 32 | 50 32 32 32 Average Speed 51 | 114 38 32 53 Slowest Speed 250 | 120 150 32 250 Overloaded Moves . | . . . . Propulsion Burnouts . | . . . . Robots Hopped 5 | . . . 5 Potential Cave-ins . | . . . . Cave-ins Triggered . | . . . . Exploration Rate (%) 26 | 4 30 42 28 Regions Visited 3 Branch Regions 1 Pre-discovered Areas . | . . . . Known Exits Taken . | . . . . Unknown Exits Taken 3 | 1 1 1 . Scrap Searched 2 | . . 2 . Spaces Dug . | . . . . Terrain Destroyed 52 | . . . 52 Melee . | . . . . Projectile . | . . . . AOE 52 | . . . 52 Terrain Rammed . | . . . . Walls Destroyed . | . . . . Machines Disabled . | . . . . Actions | -11 -10 -10 -9 --------- Run | Yrd Mat Min Mat Total 641 | 94 185 163 199 Wait 25 | . . . 25 Move 561 | 82 173 154 152 Hop 4 | . . . 4 Pick Up 8 | . 4 2 2 Fast Attach 12 | 7 3 . 2 Attach 6 | . . 2 4 Detach 4 | . 3 . 1 Swap . | . . . . Drop 5 | . 2 3 . Fire 16 | 5 . 2 9 Melee . | . . . . Ram . | . . . . Kick . | . . . . Crush . | . . . . Escape Stasis . | . . . . Rewire . | . . . . Trap . | . . . . Miscellaneous . | . . . . Route ------- -11/Scrapyard -10/Materials -10/Mines -9/Materials (discovered 1 exit: Min) History --------- Turn | Location | Event 6 | -11/Scrapyard | Discovered new exit (range 14) 120 | -11/Scrapyard | Entered Materials 178 | -10/Materials | Discovered new exit (range 14) 199 | -10/Materials | Entered Mines 210 | -10/Mines | Found a Scrap Suit stashed away for nefarious purposes 213 | -10/Mines | Found Scrap Suit 225 | -10/Mines | Found a hidden stash of uninstalled traps 254 | -10/Mines | Discovered new exit (range 14) 257 | -10/Mines | Learned location of 1 exit from Materials 260 | -10/Mines | Entered Materials 260 | -9/Materials | Evolved 2 slots: Utility x2 261 | -9/Materials | Identified exit to Mines 316 | -9/Materials | Core integrity fell below 50% 351 | -9/Materials | Lost 6 parts (1p2n1u2w) 387 | -9/Materials | Core integrity fell below 20% 399 | -9/Materials | Destroyed by G-34 Mercenary with Small Laser Last Messages --------------- 00336_ Acquired Med. Battery. 00363_ Critical hit (Burn: +37). 00363_ Seismic Detector destroyed. 00365_ Y-45 Defender misfires. 00371_ Sensor Array destroyed. 00374_ K-01 Serf collects debris. 00374_ Heat Sink fried. 00374_ Y-45 Defender destroyed. 00378_ K-01 Serf collects debris. 00378_ Acquired 32 matter. 00381_ Chain reaction triggered in Imp. Ion Engine. 00381_ Imp. EM Shotgun destroyed. 00381_ Destroyed Imp. EM Shotgun. 00381_ U-05 Engineer destroyed. 00381_ K-01 Serf collects debris. 00383_ VTOL Module destroyed. 00383_ Acquired Flail. 00386_ Critical hit (Burn: +37). 00387_ K-01 Serf collects debris. 00389_ U-05 Engineer lays Concrete. Map ----- +----------------------------------------------------+ | # #????????+ # =/ #??????????????? | | # #????????#### + =/ #??????????????? | | ## #???????????## ### # ] = #??????????????? | | ?# #????????????# #?# #########????? ????????? | | ?# #????????????# #?# *%! ####### #??????? | | ?# #????????????# #?# | #??????? | | ?# #????????????# #?# [ #??????? | | ?# #??????????###+####""" ] #??????? | | ?# #??????????# [%[ # """"" #??????? | | ?# #??????????# !== # """"" ???????? | | ## #??????????# """ # """"" #??????? | | # #??????????# """ / +??????? | | # #??????????# """ ! # #??????? | | + #??????????# [! # #??????? | | # #??????????# !! # ##########???????? | | # #??????????# # g #????????????????? | | # #??????????########### g #????????????????? | | ######????????????????????# #????????????????? | | ??????????????????????????# #????????????????? | | ??????????????###########?# #????????????????? | | ??????????????# [#?# #????????????????? | | ??????????????# ### ############?????? | | ??????????????# # ?? | | ??????????????# + ?? | | ??????????????# # ?? | | ??????????????# #@#################### ??? | | ??????????????# # ?????????????????????? | | ??????????????# #[[ ???????????????????? | | ??????????????###########[[ ?????????????????? | | ?????????????????????????[ = ???????????????? | | ?????????????????????????##########??????????????? | | | | | | | | | | | | | | | | | | | | | | | | | | | | | | | | | | | | | | | +----------------------------------------------------+ Best States ------------- Heat Dissipation 28 Energy Generation 10 Energy Capacity 250 Matter Stores 300 Matter Capacity 300 Sight Range 16 Robot Scan Range 14 Terrain Scan Range 16 Terrain Scan Density 10 ECM Strength 1 Additional Mass Support 6 Evasion (%) 63 Item Schematics ----------------- None Robot Schematics ------------------ None Fabricated ------------ Nothing Repaired ---------- Nothing Studied --------- None Alien Tech Used ----------------- None Achievements -------------- None Challenges ------------ None Game ------ Seed PlasmaMicrowarpPulseblaster Manual? 0 Play Time 00:14:16 Cumulative 43.9 hours Start 2026.03.04 @ 16:53:58 End 2026.03.04 @ 17:12:08 Sessions 1 Manual Loads 0 Difficulty Rogue Special Mode None Game No. 61 Rogue 61 Adventurer 0 Explorer 0 Win Type - Total 0 Types 0/0/0/0/0/0/0/0/0/0 Lore% 40 Gallery% 31 Achievement% 21 Wizard Run 0 Options --------- Layout 1 ASCII 0 Keyboard 0 Movement Arrows Keybinds 0 Fullscreen 1 Font 16/SmallcapsGlow Map View 55x38 Zoom Use 0% Tactical HUD 1 Map Filters NONE Filters NONE Steam 1 RUN: c9be485e-7034-4a7f-a13f-021bcbad650d